bitfinex-derivatives/quotes_SOLF0:USTF0_20250923
["timestamp","ask_amount","ask_price","bid_price","bid_amount"]
[1758591935588,3.15134408,217.93,217.91,7.59]
[1758591935781,7.55,217.96,217.91,7.59]
[1758591936094,3.15127586,217.95,217.91,7.59]
[1758591936294,3.15127586,217.94,217.91,7.59]
[1758591936493,11.6748,218.0,217.91,7.59]
[1758591936792,3.15136376,217.99,217.91,7.59]
[1758591937093,3.15136376,217.98,217.92,7.59]
[1758591937289,3.15136376,217.97,217.91,2.27334789]
[1758591937484,3.15136376,217.96,217.92,7.59]
[1758591937686,3.15136376,217.95,217.91,2.27334789]
[1758591937880,11.6748,218.0,217.93,7.59]
[1758591938086,3.15121126,217.99,217.93,7.59]
[1758591938388,3.15121126,217.98,217.92,4.1263]
[1758591938584,3.15121126,217.97,217.93,7.59]
[1758591938788,3.15121126,217.96,217.9,113.08]
[1758591938992,3.15121126,217.95,217.9,113.08]
[1758591939195,7.55,217.98,217.91,7.59]
[1758591939393,3.15151197,217.97,217.91,7.59]
[1758591939596,3.15151197,217.96,217.9,113.08]
[1758591939795,3.15151197,217.95,217.91,7.59]
[1758591939996,7.55,217.98,217.91,7.59]
[1758591940296,3.15181812,217.97,217.86,4.1273]
[1758591940489,69.60136601,217.96,217.87,76.51]
[1758591940690,69.60136601,217.96,217.82,63.8149082]
[1758591940691,7.55,217.94,217.85,113.06]
[1758591940901,7.55,217.92,217.85,113.06]
[1758591941103,7.27851812,217.91,217.85,113.06]
[1758591941398,3.15181812,217.9,217.85,113.06]
[1758591941598,3.15181812,217.89,217.85,113.06]
[1758591941798,4.1267,217.91,217.85,113.06]
[1758591942000,3.15114352,217.9,217.86,7.59]
[1758591942200,3.15114352,217.89,217.86,7.59]
[1758591942401,4.1267,217.91,217.85,120.65]
[1758591942602,3.15146649,217.9,217.85,113.06]
[1758591942902,3.15146649,217.89,217.85,113.06]
[1758591943103,4.1267,217.91,217.85,120.65]
[1758591943300,3.1515061,217.9,217.85,113.06]
[1758591943497,7.55,217.93,217.86,7.59]
[1758591943802,3.15191092,217.92,217.86,7.59]
[1758591944003,3.15191092,217.91,217.85,113.06]
[1758591944304,7.55,217.93,217.86,7.59]
[1758591944502,3.15241411,217.92,217.86,7.59]
[1758591944698,7.55,217.93,217.85,113.06]
[1758591944699,3.15241411,217.91,217.85,113.06]
[1758591944898,7.55,217.93,217.86,7.59]
[1758591945101,3.15267707,217.92,217.86,7.59]
[1758591945303,3.15267707,217.91,217.85,113.06]
[1758591945503,7.55,217.93,217.86,7.59]
[1758591945703,3.15281289,217.92,217.86,7.59]
[1758591945902,4.1261,217.94,217.86,7.59]
[1758591946103,3.15309845,217.93,217.88,2.27334789]
[1758591946302,7.55,218.01,217.89,11.7168]
[1758591946510,3.15329626,218.0,217.9,113.06]
[1758591946704,3.15329626,217.99,217.91,7.59]
[1758591946904,3.15329626,217.98,217.91,7.59]
[1758591947094,3.15329626,217.97,217.91,7.59]
[1758591947300,3.15329626,217.96,217.9,113.06]
[1758591948808,7.27879626,217.96,217.9,113.06]
[1758591949010,3.15329626,217.95,217.9,113.06]
[1758591949202,3.15329626,217.95,217.91,7.59]
[1758591949405,3.15329626,217.94,217.91,7.59]
[1758591949606,3.15329626,217.93,217.92,9.04480256]
[1758591949807,9.00480256,218.01,217.92,9.04480256]
[1758591950107,3.15486031,218.0,217.92,9.04480256]
[1758591950305,3.15486031,217.99,217.92,9.04480256]
[1758591950496,3.15486031,217.98,217.92,9.04480256]
[1758591950701,3.15486031,217.97,217.92,1.45480256]
[1758591950900,3.15486031,217.96,217.92,1.45480256]
[1758591951099,3.15486031,217.95,217.92,9.04480256]
[1758591951308,3.15486031,217.94,217.93,7.59]
[1758591951695,3.15486031,217.97,217.92,1.45480256]
[1758591951900,3.15486031,217.97,217.93,7.59]
[1758591953704,3.15486031,217.97,217.92,1.45480256]
[1758591953905,3.15486031,217.97,217.93,7.59]
[1758591954107,3.15486031,217.97,217.92,1.45480256]
[1758591954607,3.15486031,217.97,217.93,7.59]
[1758591954808,3.15486031,217.97,217.92,1.45480256]
[1758591955005,3.15486031,217.97,217.93,7.59]
[1758591955211,3.15486031,217.97,217.92,1.45480256]
[1758591956211,3.15486031,217.97,217.93,7.59]
[1758591957408,3.15486031,217.97,217.92,1.45480256]
[1758591958014,3.15486031,217.97,217.93,7.59]
[1758591958315,3.15486031,217.97,217.92,7.59]
[1758591958518,3.15486031,217.97,217.92,9.04480256]
[1758591958707,3.15486031,217.96,217.92,1.45480256]
[1758591959008,3.15803539,217.95,217.93,120.61]
[1758591959211,3.15803539,217.94,217.9,113.02]
[1758591959416,3.15803539,217.93,217.91,7.59]
[1758591959712,3.15803539,217.92,217.91,7.59]
[1758591960306,12.16283795,217.94,217.88,113.02]
[1758591960513,3.15803539,217.93,217.89,7.33]
[1758591961103,10.49803539,217.93,217.89,7.33]
[1758591961418,7.34,217.91,217.87,113.02]
[1758591961612,3.15803539,217.9,217.87,113.02]
[1758591961813,3.15803539,217.89,217.87,113.02]
[1758591962013,3.15765085,217.88,217.87,113.02]
[1758591963216,3.15765085,217.88,217.87,120.35]
[1758591963415,1.45480256,217.94,217.87,120.35]
[1758591963614,3.15708458,217.93,217.87,120.35]
[1758591963914,3.15708458,217.92,217.88,7.33]
[1758591964115,3.15708458,217.91,217.87,113.02]
[1758591964317,3.15708458,217.9,217.87,113.02]
[1758591964517,1.45480256,217.94,217.88,7.33]
[1758591964719,3.15713195,217.93,217.87,113.02]
[1758591964913,3.15713195,217.92,217.87,113.02]
[1758591965113,3.15713195,217.91,217.87,113.02]
[1758591965313,3.15713195,217.9,217.87,113.02]
[1758591965517,1.45480256,217.94,217.88,7.33]
[1758591965712,3.15787989,217.93,217.87,113.02]
[1758591965912,3.15787989,217.92,217.88,8.78480256]
[1758591966213,8.79480256,217.99,217.91,7.33]
[1758591966510,3.15813777,217.98,217.92,114.47480256]
[1758591966715,3.15813777,217.97,217.93,7.33]
[1758591966913,3.15813777,217.96,217.93,7.33]
[1758591967113,3.15813777,217.95,217.92,114.47480256]
[1758591967421,3.15813777,217.94,217.93,7.33]
[1758591967817,7.34,217.99,217.93,7.33]
[1758591968012,3.15858195,217.98,217.92,118.60110256]
[1758591968315,3.15858195,217.97,217.93,7.33]
[1758591968516,3.15858195,217.96,217.93,7.33]
[1758591968819,3.15858195,217.95,217.92,118.60110256]
[1758591969016,7.34,217.99,217.92,121.80480256]
[1758591969218,4.6131151,217.98,217.92,120.35]
[1758591969517,7.34,217.96,217.92,120.35]
[1758591969713,3.15831254,217.95,217.92,120.35]
[1758591969913,3.15831254,217.94,217.92,120.35]
[1758591970114,1.45480256,217.98,217.93,7.33]
[1758591970419,3.15807903,217.97,217.93,7.33]
[1758591970617,3.15807903,217.96,217.93,7.33]
[1758591970817,3.15807903,217.95,217.93,7.33]
[1758591971019,3.15807903,217.94,217.93,7.33]
[1758591971207,3.15807903,217.94,217.86,4.1273]
[1758591971521,3.15807903,217.93,217.87,120.33]
[1758591971716,3.15807903,217.92,217.87,113.0]
[1758591971916,3.15807903,217.91,217.87,113.0]
[1758591972117,4.1257,217.95,217.88,7.33]
[1758591972418,3.1577564,217.94,217.88,7.33]
[1758591972619,3.1577564,217.93,217.88,4.127]
[1758591972819,3.1577564,217.92,217.88,4.127]
[1758591973117,8.79480256,217.97,217.89,7.33]
[1758591973319,3.15800206,217.96,217.89,7.33]
[1758591973514,3.15800206,217.95,217.89,7.33]
[1758591973715,8.79480256,217.97,217.89,7.33]
[1758591973716,3.15800206,217.94,217.89,7.33]
[1758591973914,3.15800206,217.93,217.88,4.127]
[1758591974219,3.15800206,217.92,217.89,7.33]
[1758591974407,8.79480256,217.97,217.89,7.33]
[1758591974611,3.15836956,217.96,217.89,7.33]
[1758591974808,3.15836956,217.95,217.89,7.33]
[1758591975012,3.15836956,217.94,217.88,11.457]
[1758591975313,3.15836956,217.93,217.88,7.33]
[1758591975520,3.15836956,217.92,217.87,113.0]
[1758591975719,3.15836956,217.91,217.88,7.33]
[1758591975919,1.45480256,217.95,217.88,7.33]
[1758591976113,3.15817509,217.94,217.88,7.33]
[1758591976319,3.15817509,217.93,217.88,7.14]
[1758591976520,3.15817509,217.92,217.88,7.14]
[1758591976722,3.15817509,217.91,217.87,117.1272]
[1758591977020,1.45480256,217.95,217.88,7.14]
[1758591977220,3.15816255,217.94,217.88,7.14]
[1758591977420,3.15816255,217.93,217.88,7.14]
[1758591977624,3.15816255,217.92,217.87,117.1272]
[1758591977826,3.15816255,217.91,217.87,117.1272]
[1758591978122,1.45480256,217.95,217.88,7.14]
[1758591978319,3.15804232,217.94,217.88,7.14]
[1758591978519,3.15804232,217.94,217.87,117.1272]
[1758591978520,3.15804232,217.93,217.87,4.1272]
[1758591978721,3.15804232,217.92,217.9,7.14]
[1758591978925,1.45480256,217.95,217.89,120.12]
[1758591979113,3.15823375,217.94,217.89,112.98]
[1758591979415,3.15823375,217.93,217.89,112.98]
[1758591979613,3.15823375,217.92,217.89,112.98]
[1758591979824,1.45480256,217.95,217.89,112.98]
[1758591980026,3.15850528,217.94,217.9,7.14]
[1758591980331,3.15850528,217.93,217.89,112.98]
[1758591980622,3.15850528,217.92,217.89,112.98]
[1758591980823,1.45480256,217.95,217.89,120.12]
[1758591981025,3.15850068,217.94,217.89,112.98]
[1758591981218,3.15850068,217.93,217.89,112.98]
[1758591981425,3.15850068,217.92,217.89,112.98]
[1758591981628,1.45480256,217.95,217.89,120.12]
[1758591981815,7.48,217.97,217.9,7.14]
[1758591981816,3.15849878,217.94,217.9,7.14]
[1758591982020,3.15849878,217.93,217.9,7.14]
[1758591982326,7.48,217.97,217.9,7.14]
[1758591982520,3.15857529,217.96,217.9,7.14]
[1758591982716,3.15857529,217.95,217.89,118.56160256]
[1758591982925,4.125,218.0,217.91,4.1263]
[1758591983223,8.93480256,218.01,217.94,7.14]
[1758591983420,8.93480256,218.01,217.95,112.98]
[1758591983924,13.05940256,218.01,217.95,112.98]
[1758591984323,1.45480256,217.99,217.95,112.98]
[1758591984523,7.48,217.98,217.95,112.98]
[1758591985430,7.48,217.98,217.95,120.12]
[1758591986931,1.45480256,217.99,217.95,112.98]
[1758591987134,1.45480256,217.99,217.96,7.14]
[1758591988231,7.48,218.0,217.96,7.14]
[1758591988926,7.48,218.0,217.95,112.98]
[1758591989125,7.48,218.0,217.96,7.14]
[1758591989327,7.48,218.0,217.95,112.98]
[1758591989328,5.05644644,218.03,217.98,1.45480256]
[1758591989622,12.56179742,218.17,218.02,1.45480256]
[1758591989623,5.05644644,218.09,218.02,1.45480256]
[1758591989928,6.511249,218.12,218.05,7.14]
[1758591990231,8.93480256,218.13,218.05,7.14]
[1758591990433,1.45480256,218.12,218.05,7.14]
[1758591991332,7.49,218.09,218.03,112.1]
[1758591991629,1.45480256,218.08,218.04,120.56]
[1758591992227,8.94480256,218.08,218.04,120.56]
[1758591993027,7.49,218.08,218.04,7.62]
[1758591993332,7.49,218.08,218.04,120.56]
[1758591993522,4.1225,218.12,218.04,112.94]
[1758591993728,1.45480256,218.08,218.05,7.62]
[1758591994228,11.6125,218.12,218.05,7.62]
[1758591994429,1.45480256,218.09,218.05,7.62]
[1758591994634,1.45480256,218.09,218.04,112.94]
[1758591995433,1.45480256,218.09,218.05,7.62]
[1758591996042,1.45480256,218.09,218.04,112.94]
[1758591996328,7.49,218.12,218.04,112.94]
[1758591996531,1.45480256,218.14,218.05,9.07480256]
[1758591997234,8.94480256,218.16,218.08,7.62]
[1758591997533,8.94480256,218.16,218.09,112.92]
[1758591998435,1.45480256,218.14,218.09,112.92]
[1758591998627,7.49,218.13,218.09,112.92]
[1758591998931,7.49,218.13,218.09,120.54]
[1758591999533,5.57700256,218.14,218.1,7.62]
[1758591999734,1.45480256,218.14,218.1,7.62]
[1758592000130,7.49,218.17,218.09,120.54]
[1758592000131,13.06650256,218.17,218.09,120.54]
[1758592000933,1.45480256,218.11,218.07,112.9]
[1758592001135,7.49,218.1,218.06,112.9]
[1758592001331,1.45480256,218.09,218.06,112.9]
[1758592001727,1.45480256,218.09,218.06,120.52]
[1758592002736,1.45480256,218.09,218.06,120.5]
[1758592004134,1.45480256,218.07,217.99,7.62]
[1758592004438,1.45480256,218.07,218.01,7.62]
[1758592005137,4.1231,218.09,218.01,7.62]
[1758592005335,1.45480256,218.07,218.02,112.88]
[1758592005734,1.45480256,218.05,218.03,7.62]
[1758592006043,1.45480256,218.05,218.04,7.62]
[1758592007639,1.45480256,218.07,218.04,7.62]
[1758592007936,1.45480256,218.07,218.01,112.88]
[1758592008138,1.45480256,218.07,218.02,7.62]
[1758592008833,4.1233,218.08,218.01,112.88]
[1758592009034,7.49,218.1,218.01,112.88]
[1758592009245,7.53707845,218.28,218.17,64.1122]
[1758592009538,1.45480256,218.33,218.25,7.62]
[1758592009836,4.1183,218.35,218.26,114.6]
[1758592010341,4.1183,218.35,218.26,116.05480256]
[1758592010536,4.1183,218.35,218.26,114.6]
[1758592011840,7.49,218.32,218.21,7.62]
[1758592012040,7.49,218.32,218.22,86.0]
[1758592013239,7.49,218.32,218.22,114.54]
[1758592014948,4.119,218.31,218.22,114.54]
[1758592017346,4.119,218.31,218.23,7.62]
[1758592020842,4.1194,218.29,218.23,7.62]
[1758592021043,11.6794,218.29,218.23,7.62]
[1758592021243,7.56,218.29,218.23,7.62]
[1758592021443,7.56,218.29,218.18,114.22]
[1758592021645,71.6477,218.26,218.19,7.37]
[1758592022052,7.56,218.26,218.19,7.37]
[1758592023749,11.6799,218.26,218.19,7.37]
[1758592024750,4.1203,218.24,218.19,7.37]
[1758592024949,11.6803,218.24,218.19,7.37]
[1758592025351,4.1206,218.22,218.15,7.37]
[1758592030951,4.1206,218.22,218.15,121.37]
[1758592031754,11.6811,218.2,218.13,346.64]
[1758592032051,11.6811,218.2,218.14,7.37]
[1758592035951,11.6811,218.2,218.13,460.62]
[1758592036858,11.6811,218.2,218.13,467.7]
[1758592037757,7.24,218.17,218.07,120.92]
[1758592037960,7.24,218.17,218.08,113.84]
[1758592038353,4.1222,218.14,218.08,113.84]
[1758592040154,4.1217,218.17,218.09,7.08]
[1758592042062,64.1075,218.2,218.09,7.08]
[1758592042361,7.24,218.19,218.11,7.08]
[1758592044169,9.50764361,218.19,218.11,7.08]
[1758592044767,4.1218,218.16,218.1,113.88]
[1758592045066,64.0969,218.23,218.1,113.88]
[1758592045067,7.24,218.24,218.11,7.08]
[1758592046171,4.1208,218.22,218.11,7.08]
[1758592046470,7.24,218.21,218.11,7.08]
[1758592046670,4.121,218.2,218.11,7.08]
[1758592046968,7.24,218.21,218.12,113.82]
[1758592047567,7.24,218.19,218.11,120.92]
[1758592048168,7.24,218.19,218.11,113.84]
[1758592048169,4.1218,218.16,218.11,113.84]
[1758592048470,7.24,218.19,218.12,7.08]
[1758592049466,4.1216,218.17,218.12,7.08]
[1758592049766,4.1216,218.17,218.11,113.84]
[1758592049971,4.1216,218.17,218.11,120.92]
[1758592050764,4.1219,218.15,218.11,121.55]
[1758592050964,4.1219,218.15,218.08,2.26764361]
[1758592051170,4.1219,218.15,218.09,7.71]
[1758592051872,4.1223,218.13,218.09,7.71]
[1758592052067,11.8423,218.13,218.09,7.71]
[1758592053074,4.1228,218.11,218.09,7.71]
[1758592053270,4.1228,218.11,218.04,7.71]
[1758592053471,4.1228,218.11,218.04,106.57]
[1758592054369,7.72,218.13,218.04,106.57]
[1758592054575,7.72,218.13,218.05,7.71]
[1758592054769,4.1223,218.14,218.05,7.71]
[1758592055879,4.1225,218.12,218.05,7.71]
[1758592061967,7.72,218.13,218.01,72.53516646]
[1758592061968,7.72,218.09,218.01,72.53516646]
[1758592062171,7.72,218.09,218.02,7.71]
[1758592062366,7.72,218.09,218.02,121.29]
[1758592062566,69.13757196,218.2,218.02,121.29]
[1758592062567,7.72,218.16,218.03,7.71]
[1758592062779,7.72,218.16,218.06,7.71]
[1758592063877,11.8419,218.16,218.06,7.71]
[1758592064473,7.72,218.23,218.14,2.26764361]
[1758592064776,7.72,218.23,218.15,121.69]
[1758592064973,5.03177196,218.31,218.15,113.98]
[1758592065174,7.72,218.3,218.23,2.26764361]
[1758592065379,64.0639,218.34,218.23,2.26764361]
[1758592065773,71.7813,218.35,218.23,2.26764361]
[1758592065774,4.1188,218.32,218.23,2.26764361]
[1758592066581,4.1188,218.32,218.22,7.71]
[1758592069085,4.1192,218.3,218.22,7.71]
[1758592069276,11.8392,218.3,218.22,7.71]
[1758592071385,7.72,218.27,218.19,114.44]
[1758592071585,7.72,218.27,218.18,7.71]
[1758592071980,4.1199,218.26,218.18,7.71]
[1758592072881,7.72,218.25,218.13,7.71]
[1758592073180,7.72,218.23,218.13,7.71]
[1758592073883,4.1207,218.22,218.13,7.71]
[1758592074984,4.1207,218.22,218.13,122.17]
[1758592077588,4.1211,218.2,218.13,122.17]
[1758592078684,4.1211,218.2,218.13,7.71]
[1758592080893,7.72,218.21,218.13,7.71]
[1758592081692,7.49,218.26,218.13,7.71]
[1758592082790,4.1203,218.24,218.13,4.1223]
[1758592082994,4.1203,218.24,218.14,7.7]
[1758592085696,4.1203,218.24,218.16,7.7]
[1758592086695,4.1203,218.24,218.17,1.45109526]
[1758592088796,4.1206,218.22,218.17,1.45109526]
[1758592089000,11.6106,218.22,218.16,7.7]
[1758592089201,1.45109526,218.21,218.16,7.7]
[1758592089497,8.94109526,218.23,218.15,1.45109526]
[1758592089696,8.94109526,218.23,218.16,7.7]
[1758592090701,13.06149526,218.23,218.16,7.7]
[1758592092496,13.06149526,218.23,218.17,1.45109526]
[1758592092497,7.49,218.23,218.17,1.45109526]
[1758592092697,5.57109526,218.26,218.17,1.45109526]
[1758592092894,7.49,218.27,218.11,64.1307]
[1758592092895,7.49,218.27,218.19,1.45109526]
[1758592093099,7.49,218.27,218.2,7.7]
[1758592093298,7.49,218.27,218.21,1.45109526]
[1758592094502,7.49,218.27,218.2,7.7]
[1758592094801,11.6097,218.27,218.2,9.15109526]
[1758592095597,7.49,218.27,218.2,13.27199526]
[1758592095802,4.1193,218.3,218.24,1.45109526]
[1758592099098,4.1184,218.34,218.26,1.45109526]
[1758592105411,4.1188,218.32,218.26,1.45109526]
[1758592105807,6.99,218.31,218.26,1.45109526]
[1758592106008,11.1088,218.32,218.26,1.45109526]
[1758592106404,346.56,218.42,218.26,1.45109526]
[1758592106405,6.99,218.41,218.32,7.05]
[1758592106604,6.99,218.41,218.33,1.45109526]
[1758592106803,6.99,218.41,218.33,92.39109526]
[1758592107206,6.99,218.41,218.35,1.45109526]
[1758592107604,6.99,218.41,218.37,8.50109526]
[1758592108506,4.1167,218.43,218.37,1.45109526]
[1758592108715,4.1167,218.43,218.33,97.99]
[1758592108716,6.99,218.44,218.35,1.45109526]
[1758592109012,4.117,218.41,218.35,1.45109526]
[1758592109213,11.107,218.41,218.35,1.45109526]
[1758592111511,6.99,218.41,218.35,1.45109526]
[1758592113313,4.1173,218.4,218.33,7.05]
[1758592113513,7.04,218.37,218.29,7.32]
[1758592113709,7.04,218.37,218.29,8.77109526]
[1758592114815,4.118,218.36,218.29,8.77109526]
[1758592115011,7.04,218.35,218.27,1.45109526]
[1758592115928,7.04,218.35,218.29,1.45109526]
[1758592119216,7.04,218.35,218.29,8.77109526]
[1758592123025,11.1582,218.35,218.29,8.77109526]
[1758592124324,11.1582,218.35,218.29,7.32]
[1758592124521,4.1186,218.33,218.27,114.36]
[1758592124721,11.1586,218.33,218.27,114.36]
[1758592126226,11.1586,218.33,218.26,15.20577169]
[1758592126430,11.1586,218.33,218.27,114.32]
[1758592127722,4.1189,218.31,218.26,13.75467643]
[1758592127931,4.1189,218.31,218.27,95.18]
[1758592128229,7.04,218.3,218.27,102.5]
[1758592128530,4.1189,218.31,218.28,7.32]
[1758592130728,4.1186,218.33,218.27,102.5]
[1758592133030,4.119,218.31,218.26,128.04830756]
[1758592133234,4.119,218.31,218.26,114.1]
[1758592133531,7.04,218.3,218.27,7.32]
[1758592134433,4.119,218.31,218.26,114.04]
[1758592134630,4.119,218.31,218.27,7.32]
[1758592134831,11.159,218.31,218.26,114.04]
[1758592135028,4.119,218.31,218.26,114.04]
[1758592135233,11.1585,218.34,218.27,7.32]
[1758592135945,4.1185,218.34,218.27,7.32]
[1758592137037,4.118,218.37,218.28,7.32]
[1758592138028,4.1174,218.39,218.3,4.1191]
[1758592138234,4.1174,218.39,218.31,7.32]
[1758592141944,4.1178,218.37,218.31,7.32]
[1758592142133,4.1178,218.37,218.32,113.92]
[1758592142444,7.65,218.36,218.32,113.92]
[1758592142742,4.1178,218.37,218.31,7.32]
[1758592142939,11.7678,218.37,218.31,121.22]
[1758592143649,7.65,218.37,218.31,121.22]
[1758592149846,4.1176,218.38,218.31,113.9]
[1758592150053,7.65,218.41,218.32,7.71]
[1758592150756,7.65,218.44,218.32,7.71]
[1758592151951,71.6915,218.42,218.33,113.66]
[1758592152157,7.65,218.41,218.34,113.7]
[1758592152551,4.1178,218.38,218.35,7.71]
[1758592153352,4.1178,218.38,218.34,113.7]
[1758592153566,11.7672,218.41,218.35,7.71]
[1758592155564,4.1174,218.39,218.35,121.37]
[1758592155770,6.99,218.38,218.35,121.37]
[1758592156062,6.99,218.38,218.35,7.71]
[1758592156866,71.0461,218.37,218.27,7.52]
[1758592157054,6.99,218.35,218.27,7.52]
[1758592157365,6.99,218.35,218.27,121.14]
[1758592157661,6.99,218.3,218.26,113.68]
[1758592157865,6.99,218.3,218.27,7.52]
[1758592159259,6.99,218.28,218.24,353.7]
[1758592159464,6.99,218.28,218.26,113.66]
[1758592162669,6.99,218.28,218.24,353.7]
[1758592162867,6.99,218.28,218.25,121.1]
[1758592163364,4.1191,218.3,218.25,121.1]
[1758592163668,6.99,218.33,218.26,7.52]
[1758592164669,4.119,218.31,218.26,7.52]
[1758592164969,6.99,218.3,218.26,7.52]
[1758592168161,6.38394536,218.34,218.25,113.58]
[1758592168367,6.99,218.35,218.26,7.52]
[1758592171769,11.1082,218.35,218.26,7.52]
[1758592172267,6.99,218.35,218.26,7.52]
[1758592172474,4.1186,218.33,218.27,113.42]
[1758592175270,4.1186,218.33,218.26,7.52]
[1758592175271,64.0673,218.33,218.26,7.52]
[1758592175571,64.0673,218.33,218.22,3.83908484]
[1758592175572,6.96,218.32,218.27,63.46]
[1758592175774,6.96,218.32,218.26,63.46]
[1758592175968,4.1195,218.28,218.22,6.95]
[1758592176171,4.1195,218.28,218.24,6.95]
[1758592176370,11.0795,218.28,218.25,120.29]
[1758592177571,4.1195,218.28,218.25,120.29]
[1758592177773,6.96,218.26,218.19,6.95]
[1758592177977,6.96,218.28,218.2,113.34]
[1758592178779,4.1202,218.25,218.2,113.34]
[1758592178975,11.0802,218.25,218.2,120.29]
[1758592179681,4.1204,218.23,218.2,120.29]
[1758592179877,4.1204,218.23,218.16,77.13447972]
[1758592180078,4.1204,218.23,218.17,120.25]
[1758592181983,4.1209,218.21,218.17,6.95]
[1758592182178,4.1209,218.21,218.18,113.28]
[1758592182378,11.0809,218.21,218.18,113.28]
[1758592182579,11.0809,218.21,218.13,350.07908484]
[1758592182580,4.1209,218.21,218.14,6.95]
[1758592182778,64.1054,218.2,218.13,346.24]
[1758592183082,6.96,218.19,218.12,113.36]
[1758592183785,4.122,218.16,218.12,113.36]
[1758592184188,4.122,218.16,218.13,6.95]
[1758592186984,4.1222,218.14,218.05,6.95]
[1758592187289,4.1222,218.14,218.06,113.3]
[1758592188878,4.1222,218.14,218.07,6.95]
[1758592191082,11.0822,218.14,218.07,6.95]
[1758592191282,11.0822,218.14,218.08,113.32]
[1758592192593,12.53480384,218.14,218.08,113.32]
[1758592193487,4.1217,218.17,218.09,6.95]
[1758592193682,5.57430384,218.17,218.09,6.95]
[1758592195191,1.45260384,218.15,218.09,6.95]
[1758592195690,8.41260384,218.15,218.11,6.95]
[1758592196185,8.41260384,218.15,218.1,58.6]
[1758592196787,12.53460384,218.15,218.11,6.95]
[1758592196986,12.53460384,218.15,218.07,1.45260384]
[1758592197192,12.53460384,218.15,218.08,110.45]
[1758592197387,12.53460384,218.15,218.09,6.95]
[1758592197388,1.45260384,218.15,218.09,6.95]
[1758592197690,4.1216,218.18,218.09,6.95]
[1758592197691,1.45260384,218.17,218.09,6.95]
[1758592198893,4.1218,218.16,218.09,6.95]
[1758592200200,1.45260384,218.15,218.09,6.95]
[1758592200393,1.45260384,218.13,218.09,6.95]
[1758592200689,1.45260384,218.11,218.04,7.57]
[1758592200896,1.45260384,218.11,218.05,57.82]
[1758592201491,4.123,218.1,218.06,7.57]
[1758592202692,4.123,218.1,218.05,57.82]
[1758592203496,4.123,218.1,218.06,7.57]
[1758592203695,7.41,218.09,218.06,7.57]
[1758592203889,4.123,218.1,218.06,7.57]
[1758592204394,7.41,218.12,218.06,7.57]
[1758592204597,7.41,218.17,218.09,7.57]
[1758592207094,5.57440384,218.16,218.09,7.57]
[1758592207293,1.45260384,218.16,218.09,7.57]
[1758592207489,1.45260384,218.14,218.08,120.93]
[1758592207694,7.41,218.11,218.01,9.02260384]
[1758592207893,7.41,218.11,218.04,113.36]
[1758592208392,7.41,218.11,218.04,120.93]
[1758592208794,4.1229,218.1,218.04,120.93]
[1758592210096,5.57550384,218.1,218.04,120.93]
[1758592211893,1.45260384,218.12,218.05,7.57]
[1758592213100,4.1227,218.11,218.05,7.57]
[1758592215605,1.45260384,218.08,217.99,4.1249]